bitfinex-derivatives/quotes_ETHF0:USTF0_20260204
["timestamp","ask_amount","ask_price","bid_price","bid_amount"]
[1770210606495,0.50186958,2242.1,2241.4,0.55954025]
[1770210608805,39.83195632,2242.1,2241.4,0.55954025]
[1770210609597,0.50157908,2242.0,2241.1,0.56341921]
[1770210609998,39.83166582,2241.8,2241.1,0.56341921]
[1770210610405,39.83166582,2241.7,2241.1,0.00387896]
[1770210610801,39.33008674,2241.7,2241.1,0.00387896]
[1770210611105,39.33008674,2241.8,2241.1,0.56341921]
[1770210611804,39.82885424,2241.8,2241.1,0.56341921]
[1770210613306,0.50669319,2241.7,2241.1,0.00387896]
[1770210615914,0.50236281,2241.6,2240.7,0.55954025]
[1770210616910,0.50680165,2241.6,2240.7,0.56371779]
[1770210617712,0.47270413,2241.5,2240.7,0.00417754]
[1770210617913,0.47270413,2241.4,2240.7,0.00417754]
[1770210618516,0.04843884,2241.6,2240.8,0.55954025]
[1770210618815,42.43708674,2242.1,2241.0,0.55954025]
[1770210619010,39.33008674,2242.1,2241.0,0.55954025]
[1770210619611,39.80471651,2242.1,2241.0,0.55954025]
[1770210620012,39.33373797,2242.1,2241.0,0.55954025]
[1770210620310,0.00365123,2242.1,2241.1,0.55954025]
[1770210620506,0.00365123,2242.1,2241.1,3.23297345]
[1770210620812,39.80106528,2242.4,2241.3,0.55954025]
[1770210621011,7.84092647,2242.9,2241.8,0.55954025]
[1770210621012,37.80264844,2242.8,2241.8,0.55954025]
[1770210621213,0.46710304,2243.0,2241.9,0.04204306]
[1770210621612,0.47045416,2243.0,2241.9,0.04204306]
[1770210622014,0.47045416,2243.0,2242.0,0.17985686]
[1770210623120,0.47045416,2243.0,2241.9,0.22336]
[1770210623322,0.518893,2243.0,2241.9,0.22336]
[1770210625323,0.54039899,2242.8,2241.9,0.22336]
[1770210629425,0.58883783,2242.8,2241.9,0.22336]
[1770210634128,0.54039899,2242.8,2241.9,0.22336]
[1770210634429,0.54039899,2242.6,2241.9,0.22336]
[1770210637531,0.58883783,2242.6,2241.9,0.22336]
[1770210637731,0.58883783,2242.6,2241.9,0.26493689]
[1770210640933,0.04843884,2242.5,2241.9,0.26493689]
[1770210642233,0.04843884,2242.5,2242.0,0.03994584]
[1770210642435,0.54039899,2242.9,2242.1,0.03994584]
[1770210642734,0.00335112,2243.0,2242.2,0.00205976]
[1770210643131,0.54375011,2243.0,2242.2,0.00205976]
[1770210644234,0.54375011,2243.0,2242.1,0.22334]
[1770210644630,0.54375011,2243.0,2241.7,0.22338]
[1770210645329,0.54375011,2243.0,2241.8,0.22338]
[1770210648035,0.54039899,2242.9,2241.5,2.66851578]
[1770210648235,0.54039899,2242.7,2241.5,2.66851578]
[1770210648428,0.54039899,2242.5,2241.3,2.89193578]
[1770210648942,0.54039899,2242.3,2241.1,2.66851578]
[1770210649240,0.54039899,2242.1,2241.0,2.66851578]
[1770210649432,0.54039899,2242.1,2240.9,2.89197578]
[1770210649934,0.54039899,2242.0,2240.9,0.22346]
[1770210651038,0.54039899,2241.9,2240.9,0.22346]
[1770210654136,0.54039899,2241.9,2240.7,0.00417754]
[1770210656543,0.54039899,2241.9,2240.7,0.22765754]
[1770210659645,0.54039899,2241.9,2240.8,0.22347]
[1770210661244,0.54039899,2241.9,2240.9,0.22346]
[1770210661544,0.54039899,2241.9,2241.0,0.22345]
[1770210661747,0.54039899,2241.9,2241.2,0.22343]
[1770210661944,0.52844376,2242.1,2241.2,0.22343]
[1770210663141,0.52844376,2242.1,2241.3,0.22343]
[1770210663347,0.52844376,2242.1,2241.4,0.22341]
[1770210664042,0.044,2242.2,2241.4,0.22341]
[1770210664548,0.044,2242.2,2241.6,0.22339]
[1770210664847,6.59574887,2243.0,2241.7,0.22338]
[1770210664848,0.53086734,2242.5,2241.7,0.22338]
[1770210665646,0.53086734,2242.5,2241.4,2.66851578]
[1770210665647,0.53086734,2242.5,2241.8,0.22337]
[1770210666145,0.53086734,2242.5,2241.4,0.22341]
[1770210666346,0.53086734,2242.5,2241.3,2.66851578]
[1770210666546,0.53086734,2242.5,2241.6,0.22339]
[1770210667446,0.53086734,2242.5,2241.8,0.22337]
[1770210667653,0.54542447,2242.7,2241.5,2.66851578]
[1770210667846,0.54542447,2242.7,2241.9,0.22336]
[1770210673450,0.54542447,2242.7,2242.0,0.22336]
[1770210673748,0.5545184,2242.9,2242.1,0.22335]
[1770210678650,0.5545184,2242.9,2241.6,6.63785577]
[1770210678855,0.5545184,2242.9,2241.7,0.22338]
[1770210679252,0.5545184,2242.9,2241.8,0.22337]
[1770210683762,0.55901077,2242.4,2241.5,0.2234]
[1770210684354,0.55901077,2242.4,2241.5,1.99418201]
[1770210684561,0.55901077,2242.4,2241.9,1.77078201]
[1770210684861,0.55901077,2242.4,2241.7,1.77078201]
[1770210686565,0.55901077,2242.4,2241.9,1.77078201]
[1770210686864,0.55901077,2242.4,2241.7,1.99417201]
[1770210688464,0.55901077,2242.4,2241.6,2.66851578]
[1770210688763,0.55901077,2242.4,2241.5,4.43929779]
[1770210689463,0.55901077,2242.4,2241.5,4.66270779]
[1770210691264,0.55901077,2242.4,2241.6,2.66851578]
[1770210694165,0.55901077,2242.4,2241.7,1.77078201]
[1770210694364,0.55901077,2242.4,2241.7,4.43929779]
[1770210695368,0.55901077,2242.4,2241.7,4.66267779]
[1770210700169,0.55901077,2242.4,2241.7,2.89189578]
[1770210703368,0.55901077,2242.4,2241.9,1.77078201]
[1770210704777,40.20216253,2242.7,2242.1,1.77078201]
[1770210705473,39.64657324,2242.8,2242.1,1.77078201]
[1770210705676,40.20179341,2242.9,2242.1,1.77078201]
[1770210706677,0.55522017,2242.8,2242.1,1.99412201]
[1770210707677,0.55522017,2242.8,2242.1,4.66263779]
[1770210708178,0.55522017,2242.8,2242.2,2.66851578]
[1770210709274,0.55522017,2242.8,2242.1,4.66263779]
[1770210710776,0.55522017,2242.8,2242.1,0.22334]
[1770210711078,0.55522017,2242.8,2241.9,5.740122]
[1770210711079,0.56036503,2242.6,2241.9,2.66851578]
[1770210711277,0.56036503,2242.6,2241.8,2.66851578]
[1770210711578,0.56036503,2242.6,2241.7,4.43929779]
[1770210713981,0.56036503,2242.6,2241.7,2.66851578]
[1770210715383,0.55970328,2242.4,2241.6,2.89190578]
[1770210715584,0.55970328,2242.4,2241.6,0.22339]
[1770210719481,0.55970328,2242.4,2241.6,2.89190578]
[1770210719984,0.55970328,2242.4,2241.6,2.8970252]
[1770210722387,0.55970328,2242.4,2241.5,2.6736352]
[1770210722579,0.55960037,2242.2,2241.2,2.6736352]
[1770210727690,0.55960037,2242.2,2241.6,0.22339]
[1770210727887,0.56020006,2242.4,2241.6,0.22339]
[1770210728890,0.56020006,2242.4,2241.7,0.22338]
[1770210736693,39.64657324,2242.6,2241.5,2.6736352]
[1770210736694,0.5609268,2242.6,2241.8,0.22338]
[1770210739091,0.5609268,2242.6,2242.0,0.22336]
[1770210741793,0.5609268,2242.6,2241.9,2.6736352]
[1770210741999,0.5609268,2242.6,2241.8,3.96933999]
[1770210742000,0.5609268,2242.6,2241.7,2.6736352]
[1770210747503,0.56044775,2242.4,2241.5,2.6736352]
[1770210747705,0.56044775,2242.4,2241.4,2.6736352]
[1770210747906,0.56044775,2242.2,2241.2,2.8970652]
[1770210752105,0.56044775,2242.2,2241.6,0.22339]
[1770210753005,42.75357324,2242.6,2241.6,0.22339]
[1770210753006,0.54881927,2242.5,2241.6,0.22339]
[1770210753206,0.54881927,2242.5,2241.6,2.8970252]
[1770210753906,0.54881927,2242.5,2241.7,2.8970152]
[1770210755706,39.64657324,2242.8,2241.7,2.6736352]
[1770210755909,0.54823123,2242.7,2241.9,0.22336]
[1770210756108,0.54823123,2242.7,2241.9,2.8969952]
[1770210756511,0.54823123,2242.7,2242.0,0.22336]
[1770210765216,0.54823123,2242.7,2242.0,2.8969952]
[1770210765520,39.64657324,2243.9,2242.8,0.22327]
[1770210765812,39.64657324,2244.0,2242.8,0.22327]
[1770210766017,39.64657324,2244.0,2242.8,0.69950099]
[1770210766218,42.75357324,2244.1,2242.8,0.69950099]
[1770210766424,42.75891954,2244.1,2242.8,0.70355106]
[1770210767221,3.1123463,2244.1,2242.8,0.70355106]
[1770210767621,0.46760531,2244.0,2242.8,0.70355106]
[1770210768824,0.46760531,2244.0,2242.9,0.47790163]
[1770210772829,0.46760531,2244.0,2243.0,0.48586832]
[1770210773729,0.46760531,2244.0,2243.2,0.22323]
[1770210775928,0.46760531,2244.0,2242.9,0.47797033]
[1770210776126,0.46760531,2244.0,2242.8,0.22732007]
[1770210776432,0.46760531,2244.0,2242.9,0.47797033]
[1770210780633,0.46760531,2244.0,2242.9,0.70124033]
[1770210780834,0.46760531,2244.0,2243.0,0.50683359]
[1770210781234,0.46760531,2244.0,2243.1,0.50642735]
[1770210781534,0.0053463,2244.1,2243.5,0.50642735]
[1770210782131,0.48043237,2244.6,2243.6,0.50642735]
[1770210783142,0.4856347,2244.6,2243.6,0.50642735]
[1770210784636,0.4856347,2244.6,2243.8,0.50642735]
[1770210787440,0.00520233,2244.6,2243.8,0.50642735]
[1770210787635,0.48043237,2245.4,2244.3,0.50642735]
[1770210788535,0.48540407,2245.4,2244.3,0.50642735]
[1770210788733,0.48540407,2245.4,2244.5,0.50642735]
[1770210789031,0.48540407,2245.4,2244.6,0.50642735]
[1770210790643,0.48043237,2245.1,2244.5,0.00313155]
[1770210790941,0.48043237,2244.9,2244.5,0.00313155]
[1770210796747,0.48043237,2244.7,2243.8,0.49168802]
[1770210797340,3.107,2245.1,2243.7,0.22318]
[1770210797341,0.48043237,2244.5,2243.7,0.22318]
[1770210797643,0.48043237,2244.5,2243.7,0.22663134]
[1770210799046,0.48043237,2244.1,2243.7,0.00345134]
[1770210802044,0.48043237,2244.7,2243.7,0.00345134]
[1770210805857,0.48043237,2244.7,2243.7,0.48823513]
[1770210806655,0.48043237,2244.7,2243.8,0.48478379]
[1770210807354,0.48043237,2244.7,2243.9,0.48478379]
[1770210807659,0.49930859,2244.9,2244.1,0.48478379]
[1770210808357,0.49930859,2244.9,2244.2,0.48478379]
[1770210809060,0.49930859,2245.3,2244.3,0.48478379]
[1770210809356,0.49930859,2245.3,2244.4,0.48478379]
[1770210812955,0.49930859,2245.3,2244.3,2.87100623]
[1770210813259,0.49930859,2245.3,2244.3,0.22312]
[1770210815059,0.49930859,2244.9,2243.6,4.45412378]
[1770210815263,0.49930859,2244.9,2243.8,0.22317]
[1770210815662,0.49930859,2244.8,2243.8,0.22317]
[1770210822261,0.49930859,2244.8,2243.9,0.70794379]
[1770210822466,0.49930859,2244.8,2244.1,0.70793379]
[1770210822667,0.49930859,2245.3,2244.4,0.48478379]
[1770210822865,0.49930859,2245.3,2244.5,0.48478379]
[1770210827272,0.49930859,2245.3,2244.4,0.22311]
[1770210827570,0.49930859,2245.3,2244.1,0.48478379]
[1770210828670,0.49930859,2245.2,2244.1,0.48478379]
[1770210831675,0.49930859,2244.8,2243.7,0.00345134]
[1770210831869,0.49930859,2244.7,2243.7,0.00345134]
[1770210836281,0.49930859,2244.7,2243.7,0.50061341]
[1770210836978,0.49930859,2244.7,2243.7,0.00345134]
[1770210837180,40.36897183,2244.7,2243.7,0.00345134]
[1770210837380,0.4735964,2244.6,2243.7,0.00345134]
[1770210838579,0.6966964,2244.6,2243.7,0.00345134]
[1770210838876,0.46730613,2244.5,2243.7,0.00345134]
[1770210842986,0.46730613,2244.5,2243.7,0.47507332]
[1770210847789,0.46730613,2244.5,2243.7,0.00345134]
[1770210855297,0.46730613,2244.3,2243.3,3.96933999]
[1770210855501,0.46730613,2244.3,2243.3,0.47162198]
[1770210856501,0.46730613,2244.3,2243.3,0.47500485]
[1770210858401,0.46730613,2244.3,2243.4,0.47162198]
[1770210861403,0.46730613,2244.3,2243.5,0.47162198]
[1770210862703,0.46730613,2244.3,2243.3,4.44434484]
[1770210862905,0.46730613,2244.1,2243.3,0.47500485]
[1770210868307,0.46040614,2243.9,2243.3,0.00338287]
[1770210869210,0.46040614,2243.8,2243.0,0.50227342]
[1770210870005,0.68358614,2243.8,2242.7,4.47161341]
[1770210870204,0.46040614,2243.6,2242.7,0.00364889]
[1770210870912,0.46040614,2243.6,2242.7,0.50592231]
[1770210873206,0.46040614,2243.4,2242.1,0.50227342]
[1770210873609,0.46040614,2243.3,2242.1,0.50227342]
[1770210874406,0.46040614,2243.3,2242.1,0.50577113]
[1770210875011,0.46040614,2243.3,2242.1,3.15088867]
[1770210875214,0.46040614,2243.3,2242.2,0.50227342]
[1770210878118,0.46040614,2243.7,2242.8,0.50227342]
[1770210884217,0.00535797,2243.8,2242.8,0.50227342]
[1770210884423,0.00535797,2243.8,2243.2,0.50227342]
[1770210885725,0.46576411,2243.8,2243.1,0.22325]
[1770210885931,0.46576411,2243.8,2242.8,0.50227342]
[1770210887527,0.46576411,2243.8,2243.0,0.50227342]
[1770210888823,0.46576411,2243.8,2242.9,0.72553342]
[1770210889331,0.46576411,2243.8,2243.0,0.50227342]
[1770210891230,0.46040614,2243.7,2242.9,0.72553342]
[1770210892731,0.46040614,2243.7,2243.0,0.50227342]
[1770210894434,0.46040614,2243.7,2242.9,0.72372968]
[1770210895034,0.49299494,2243.6,2242.5,2.86841754]
[1770210895234,0.49299494,2243.4,2242.5,0.2233]
[1770210895734,40.13956818,2243.4,2242.4,0.50046968]
[1770210895934,0.49299494,2243.3,2242.4,0.50046968]
[1770210897036,0.49299494,2243.3,2242.2,3.14558722]
[1770210897337,0.49299494,2243.3,2242.3,2.64511754]
[1770210897837,0.49589352,2242.9,2242.1,0.00349771]
[1770210898335,40.14246676,2242.8,2242.1,0.00349771]
[1770210898531,0.49589352,2242.6,2241.6,3.34043282]
[1770210898734,0.49589352,2242.6,2241.7,0.47192528]
[1770210898929,40.14246676,2242.4,2241.5,0.47192528]
[1770210899129,0.49589352,2242.3,2241.5,0.47192528]
[1770210899333,0.49589352,2242.0,2241.2,0.47192528]
[1770210899536,0.49924522,2242.0,2241.2,0.47620108]
[1770210901542,0.49924522,2242.0,2241.2,0.0042758]
[1770210901835,0.49589352,2241.7,2240.5,0.47192528]
[1770210902036,0.49589352,2241.7,2240.5,0.69542528]
[1770210902230,0.49589352,2241.7,2240.6,0.47192528]
[1770210902738,0.49589352,2241.7,2240.6,0.47508365]
[1770210905040,0.49589352,2241.7,2240.7,0.47192528]
[1770210905240,0.49589352,2241.9,2240.8,0.47192528]
[1770210905443,0.0033517,2242.0,2241.2,0.47192528]
[1770210905746,0.49924522,2242.0,2241.0,0.47192528]
[1770210907646,0.49589352,2242.7,2241.4,0.47192528]
[1770210907841,0.49589352,2242.7,2241.8,0.47192528]
[1770210908540,0.49589352,2243.2,2242.0,0.47192528]
[1770210908746,0.49962346,2243.2,2242.0,0.47192528]
[1770210909247,0.49962346,2243.2,2242.1,0.47192528]
[1770210909441,0.00372994,2243.2,2242.2,0.47192528]
[1770210909641,0.49589352,2243.9,2242.9,0.47192528]
[1770210910747,0.49927223,2243.9,2242.9,0.47685065]
[1770210911550,0.00337871,2243.9,2243.2,0.47192528]
[1770210911749,0.49589352,2244.4,2243.4,0.47192528]
[1770210912647,0.49965558,2244.4,2243.4,0.47192528]
[1770210914150,0.49965558,2244.4,2243.1,0.47192528]
[1770210914848,0.49965558,2244.4,2242.9,0.00492537]
[1770210915049,0.49589352,2244.1,2242.9,0.00492537]
[1770210915248,0.49589352,2243.8,2242.9,0.00492537]
[1770210915550,0.49589352,2243.8,2242.5,0.47192528]
[1770210915749,0.49589352,2243.8,2241.8,0.47192528]
[1770210915750,0.49589352,2243.4,2241.8,0.47192528]
[1770210916152,0.49589352,2243.4,2242.2,0.47192528]
[1770210916753,0.49589352,2243.4,2242.4,0.47192528]
[1770210917148,0.49589352,2243.4,2242.5,0.47192528]
[1770210917844,0.22316,2244.0,2242.7,0.47192528]
[1770210917845,0.49589352,2243.7,2242.7,0.47192528]
[1770210918549,0.49589352,2243.7,2242.6,0.22329]
[1770210918749,0.49589352,2243.7,2242.4,0.47192528]
[1770210922153,0.49589352,2243.7,2242.5,0.2233]
[1770210922352,46.08469907,2244.3,2242.7,0.47192528]
[1770210922353,0.49589352,2243.9,2242.7,0.47192528]
[1770210922954,0.49589352,2243.9,2242.8,0.47192528]
[1770210923358,0.53989352,2244.1,2242.9,0.47192528]
[1770210923559,0.49589352,2244.1,2243.0,0.47192528]
[1770210924260,0.49589352,2244.1,2243.1,0.46526889]
[1770210924460,0.48154213,2244.4,2243.1,0.46526889]
[1770210925862,0.48154213,2244.4,2243.2,0.46526889]
[1770210926154,0.48154213,2244.4,2243.1,0.22325]
[1770210926365,0.47778007,2243.7,2242.4,0.46526889]
[1770210926954,0.47778007,2243.4,2242.1,0.68860889]
[1770210927159,0.47778007,2243.3,2242.1,0.68860889]
[1770210927553,0.47778007,2243.3,2242.2,0.69433349]
[1770210927858,0.47778007,2243.3,2242.3,0.46526889]
[1770210929259,0.47778007,2243.3,2242.2,0.2290646]
[1770210929666,0.47778007,2243.0,2242.2,0.0057246]
[1770210929859,0.47778007,2243.0,2241.7,0.68864889]
[1770210930065,0.47778007,2242.9,2241.7,0.46526889]
[1770210930255,0.47778007,2242.9,2241.8,0.46526889]
[1770210930459,0.47778007,2242.9,2241.9,0.46526889]
[1770210930859,0.47778007,2242.9,2241.9,0.47010551]
[1770210931064,0.47778007,2242.9,2241.9,0.00483662]
[1770210932566,0.47778007,2242.9,2241.9,0.47010551]
[1770210934264,0.47778007,2243.4,2242.0,0.46526889]
[1770210934661,0.47778007,2243.4,2242.3,0.46526889]
[1770210935766,0.47778007,2243.3,2241.9,2.63083346]
[1770210936063,0.47778007,2243.3,2241.9,0.47010551]
[1770210936258,0.47778007,2243.3,2242.0,0.46526889]
[1770210936464,0.47778007,2243.3,2242.0,0.68861889]
[1770210936665,0.47778007,2243.2,2242.0,0.68861889]
[1770210936966,0.47778007,2243.2,2242.0,0.46526889]
[1770210937958,0.47778007,2243.2,2242.0,0.22335]
[1770210938263,0.47778007,2243.2,2242.1,0.46526889]
[1770210940770,0.47778007,2243.2,2242.2,0.46526889]
[1770210941372,40.16835331,2243.5,2242.4,0.46526889]
[1770210941568,0.47778007,2243.5,2242.7,0.46526889]
[1770210941778,0.47778007,2243.7,2242.8,0.46526889]
[1770210942066,0.47778007,2244.0,2243.2,0.46526889]
[1770210942271,0.47778007,2244.3,2243.3,0.46526889]
[1770210942471,0.47778007,2244.3,2243.4,0.22321]
[1770210942671,0.47778007,2244.3,2243.0,2.62599684]
[1770210942972,0.47778007,2244.3,2243.1,0.46526889]
[1770210943574,0.47778007,2244.3,2243.2,0.46526889]
[1770210944172,0.47778007,2244.3,2243.3,0.46526889]
[1770210945674,0.47778007,2244.3,2243.4,0.46526889]
[1770210947472,0.47778007,2244.3,2243.5,0.46526889]
[1770210947675,0.47778007,2244.3,2243.5,0.46959806]
[1770210950980,0.00376206,2244.4,2242.3,0.50886221]
[1770210950981,7.87550748,2243.7,2242.3,0.50886221]
[1770210951183,0.044,2243.7,2242.6,0.50886221]
[1770210951877,0.044,2243.7,2242.6,0.51416756]
[1770210952082,0.2232,2243.6,2242.6,0.00530535]
[1770210952282,40.08030356,2243.6,2241.9,0.50886221]
[1770210953285,40.08030356,2243.6,2241.9,0.51323093]
[1770210953986,0.22321,2243.5,2241.9,0.51323093]
[1770210954877,0.00435281,2243.4,2241.9,0.51323093]
[1770210955082,0.00435281,2242.7,2241.6,0.50729009]
[1770210955280,0.00435281,2242.2,2241.3,0.50729009]
[1770210956284,0.00326434,2242.2,2241.3,0.51264266]
[1770210957581,0.47890044,2241.3,2239.9,5.24919911]
[1770210957782,0.47890044,2241.3,2240.0,0.22355]
[1770210957978,0.47890044,2241.3,2240.1,0.22354]
[1770210958582,0.47890044,2241.3,2240.1,0.22752908]
[1770210958981,40.844,2241.6,2240.1,0.22752908]
[1770210958982,0.52290044,2241.6,2240.1,0.22752908]
[1770210959181,40.63401834,2242.2,2240.4,0.49439685]
[1770210959589,1.02759,2241.7,2240.1,0.00398908]
[1770210959791,0.22343,2241.3,2240.1,0.49838593]
[1770210961388,0.22339,2241.7,2240.1,0.49838593]
[1770210961683,0.22339,2241.7,2240.2,0.51537214]
[1770210963492,2.59370884,2240.8,2239.1,0.52892639]
[1770210963686,0.2235,2240.6,2239.1,0.52892639]
[1770210963893,0.22352,2240.4,2239.1,0.52892639]
[1770210964588,0.00394164,2240.4,2239.1,0.53389881]
[1770210964793,0.47890044,2240.1,2238.9,0.22196456]
[1770210965588,0.00394164,2240.4,2238.9,0.22196456]
[1770210965589,0.48284208,2240.4,2238.9,0.22196456]
[1770210965794,0.48284208,2240.4,2238.9,0.22523701]
[1770210966395,0.47890044,2240.2,2238.9,0.22523701]
[1770210966791,0.47890044,2240.2,2238.9,0.69702393]
[1770210966986,0.47890044,2240.1,2239.0,0.47178692]
[1770210967593,0.47890044,2240.1,2238.9,0.22523701]
[1770210969197,0.47890044,2238.6,2236.3,1.03007]
[1770210969390,0.47890044,2238.5,2236.8,0.22387]
[1770210969592,0.47890044,2238.1,2236.9,0.47178692]
[1770210969889,0.47890044,2238.4,2236.9,0.47178692]
[1770210970093,0.48264882,2238.4,2236.9,0.47550201]
[1770210970292,0.47890044,2238.3,2236.9,0.47550201]
[1770210970596,0.47890044,2237.8,2236.1,1.03017]
[1770210970797,0.47890044,2237.8,2236.4,0.22391]
[1770210971592,0.22375,2238.1,2236.4,0.22964088]
[1770210971794,0.47890044,2238.1,2236.6,0.22389]
[1770210971993,0.48264882,2238.4,2236.6,0.22389]
[1770210972197,0.48264882,2238.4,2236.7,0.22388]
[1770210972597,0.48264882,2238.4,2236.8,0.47178692]
[1770210973397,0.47890044,2238.2,2236.8,0.47178692]
[1770210973592,0.47890044,2238.0,2236.8,0.47178692]
[1770210973792,0.47890044,2238.0,2236.5,0.47178692]
[1770210974396,0.47890044,2237.9,2236.5,0.47178692]
[1770210975199,0.47890044,2236.7,2235.2,0.22404]
[1770210975400,0.47890044,2236.7,2234.5,1.03088]
[1770210975401,0.47890044,2236.6,2235.3,0.47178692]
[1770210975600,0.47890044,2236.4,2234.6,0.22409]
[1770210975796,0.47890044,2236.4,2234.7,0.22408]
[1770210976295,0.47890044,2235.8,2234.4,0.22411]
[1770210976497,0.47890044,2235.8,2234.3,0.44755746]
[1770210977196,0.47890044,2235.8,2234.5,0.2241]
[1770210977394,0.47890044,2235.8,2234.6,0.2241]
[1770210977598,0.47890044,2235.8,2234.7,0.12935486]
[1770210978002,0.47890044,2236.3,2234.8,0.12935486]
[1770210978197,0.47890044,2236.3,2235.0,0.12935486]
[1770210978398,0.47890044,2236.3,2235.1,0.12935486]
[1770210978895,0.0052064,2236.4,2235.2,0.34130537]
[1770210979100,0.48410684,2236.4,2235.3,0.11726537]
[1770210980801,0.0052064,2236.4,2235.3,0.11726537]
[1770210981801,0.47890044,2235.8,2234.3,0.92490377]
[1770210982003,1.0352564,2236.4,2234.8,0.22407]
[1770210982004,0.47890044,2236.2,2234.8,0.22407]
[1770210982207,0.47890044,2236.2,2235.0,0.47178692]
[1770210982398,0.47890044,2236.2,2235.1,0.47178692]
[1770210982907,0.47890044,2236.2,2234.7,0.47178692]
[1770210983108,0.47890044,2236.2,2234.9,0.47178692]
[1770210984797,0.47890044,2236.2,2235.0,0.46279946]
[1770210984998,0.47890044,2236.2,2235.1,0.46279946]
[1770210985500,0.0052064,2236.4,2235.1,0.46279946]
[1770210985700,0.0052064,2236.4,2235.3,0.46279946]
[1770210986308,0.0052064,2236.4,2235.4,0.46279946]
[1770210987609,0.0052064,2236.4,2235.5,0.46279946]
[1770210988205,0.22399,2235.7,2234.5,0.46279946]
[1770210988405,0.71042227,2235.6,2234.3,0.45311685]
[1770210988707,0.48642227,2235.6,2234.3,0.67723685]
[1770210989507,0.22402,2235.4,2233.8,0.22417]
[1770210989702,0.48642227,2235.3,2233.8,0.22417]
[1770210990304,0.48642227,2235.2,2233.8,0.22417]
[1770210990500,0.48642227,2235.2,2234.0,0.46279946]
[1770210991809,0.48642227,2235.1,2234.0,0.46279946]
[1770210992107,0.22404,2235.2,2234.0,0.46279946]
[1770210993308,0.48642227,2235.1,2234.0,0.46279946]
[1770210994213,0.22404,2235.2,2234.0,0.46279946]
[1770210994506,0.48642227,2235.1,2234.0,0.46279946]
[1770210994713,0.48642227,2234.9,2233.9,0.22585527]
[1770210996113,0.71043227,2235.5,2234.1,0.46279946]
[1770210996314,0.48642227,2235.4,2234.1,0.46279946]
[1770210997115,0.044,2236.0,2234.0,0.22415]
[1770210997116,0.48642227,2235.7,2234.4,0.46279946]
[1770210997315,0.26796,2236.0,2234.6,0.46279946]
[1770210997316,0.75438227,2236.0,2234.6,0.46279946]
[1770210997511,0.48642227,2235.5,2234.5,0.50679946]
[1770210997911,0.48642227,2236.2,2235.1,0.46279946]
[1770210998418,0.48642227,2236.2,2235.2,0.46279946]
[1770210998627,0.48642227,2235.9,2234.7,0.46279946]
[1770211000321,0.48642227,2235.7,2234.0,0.46279946]
[1770211000618,0.48642227,2235.2,2234.0,0.46279946]
[1770211000911,0.48642227,2235.2,2234.0,0.68694946]
[1770211001112,0.48642227,2235.2,2234.1,0.46279946]
[1770211002114,0.45159579,2235.0,2233.5,0.46279946]
[1770211002311,0.45159579,2235.0,2233.7,0.68697946]
[1770211002619,0.45159579,2235.0,2233.8,0.46279946]
[1770211003119,0.45159579,2235.0,2233.8,0.46448067]
[1770211003321,0.45159579,2235.0,2233.8,0.50848067]
[1770211003716,0.45159579,2235.0,2233.8,0.46448067]
[1770211004427,0.42918771,2234.8,2233.8,0.46448067]
[1770211004621,0.43422571,2234.8,2233.8,0.46448067]
[1770211005513,0.43422571,2234.8,2233.5,0.46279946]
[1770211006116,0.2241,2234.6,2233.5,0.46279946]
[1770211006317,0.005038,2234.8,2233.5,0.46279946]
[1770211006822,0.005038,2234.8,2233.7,0.46279946]
[1770211009216,0.005038,2234.8,2234.0,0.68694946]
[1770211009423,0.6492546,2235.2,2233.7,0.46279946]
[1770211009615,0.6492546,2235.2,2233.8,0.46279946]
[1770211009816,0.22404,2235.2,2234.0,0.46279946]
[1770211010021,0.22404,2235.2,2234.1,0.46279946]
[1770211010524,0.6492746,2235.0,2234.1,0.46783746]
[1770211011123,39.70881333,2235.0,2234.1,0.46783746]
[1770211011519,39.28359873,2235.0,2234.1,0.46783746]
[1770211011719,0.22406,2235.0,2234.1,0.46783746]
[1770211011925,0.71050227,2234.8,2233.3,0.22422]
[1770211012121,0.71050227,2234.8,2232.9,2.6640755]
[1770211012122,0.71055227,2234.3,2232.9,2.6640755]
[1770211012323,0.48642227,2234.2,2233.2,0.22423]
[1770211012624,5.28469907,2234.5,2233.2,0.22423]
[1770211012625,0.48642227,2234.5,2233.2,0.22423]
[1770211013916,0.48642227,2234.5,2233.3,0.47972186]
[1770211014131,0.49366803,2234.8,2233.6,0.47972186]
[1770211015627,0.49366803,2234.8,2233.7,0.47972186]
[1770211016430,0.00491794,2235.2,2234.5,0.70382186]
[1770211017620,40.24606422,2235.7,2234.7,0.46489544]
[1770211017823,0.48310471,2235.7,2234.7,0.46489544]
[1770211018126,40.24606422,2235.7,2234.8,0.46489544]
[1770211018424,0.48310471,2235.7,2234.8,0.46489544]
[1770211018618,0.48672519,2235.7,2234.8,0.46981338]
[1770211019221,0.00362048,2235.7,2234.8,0.46981338]
[1770211019420,39.76657999,2235.7,2234.8,0.46981338]
[1770211020028,39.76657999,2235.7,2234.8,0.69388338]
[1770211020230,39.76295951,2236.0,2235.3,0.46489544]
[1770211020428,39.76295951,2236.2,2235.3,0.46489544]
[1770211020629,39.76295951,2236.3,2235.3,0.46489544]
[1770211020826,40.69606422,2236.4,2235.5,0.224]
[1770211021135,0.45,2236.4,2235.6,0.22399]
[1770211021329,0.45465901,2236.4,2235.6,0.22399]
[1770211021536,0.45465901,2236.4,2235.7,0.46489544]
[1770211021934,0.45465901,2236.4,2235.7,0.68887544]
[1770211022134,0.45465901,2236.4,2235.8,0.46489544]
[1770211022331,40.24606422,2237.4,2236.1,0.46489544]
[1770211022536,0.48310471,2237.4,2236.1,0.46489544]
[1770211023234,0.48829952,2237.4,2236.4,0.46489544]
[1770211023428,0.48829952,2237.4,2236.5,9.22189544]
[1770211024735,0.48829952,2237.4,2236.5,9.44579544]
[1770211024937,0.00519481,2237.4,2236.6,0.46489544]
[1770211025435,0.00519481,2237.4,2236.5,8.9809]
[1770211025436,0.48310471,2238.2,2236.8,0.46489544]
[1770211025638,0.48310471,2238.0,2236.7,0.22388]
[1770211025835,0.48310471,2238.0,2236.7,8.97888]
[1770211026337,0.48662752,2238.0,2236.7,8.97888]
[1770211026538,0.48310471,2237.9,2236.9,0.46489544]
[1770211027536,0.48310471,2237.9,2237.0,0.46489544]
[1770211027842,0.00352281,2238.0,2237.1,9.21889544]
[1770211028942,0.00352281,2238.0,2237.2,0.46489544]
[1770211029143,0.48310471,2238.7,2237.5,0.46489544]
[1770211029435,0.52710471,2239.0,2237.9,0.46489544]
[1770211029640,0.48310471,2239.0,2238.1,0.46489544]
[1770211030041,0.48820827,2239.0,2238.1,0.46986055]
[1770211030446,0.48820827,2239.0,2238.1,0.69360055]
[1770211030636,0.48310471,2239.6,2238.5,0.46489544]
[1770211030842,0.48310471,2239.6,2238.2,1.02918]
[1770211030843,0.48310471,2240.2,2238.9,0.46489544]
[1770211031043,0.48310471,2240.2,2239.0,9.21789544]
[1770211031344,1.02802,2240.8,2239.0,9.21789544]
[1770211031345,0.48310471,2240.5,2239.2,0.46489544]